fUSD/lending_fUSD_20240519
["ID","MTS","AMOUNT","RATE_DAILY","PERIOD"]
[327518507,1716147042334,-13279.45047432,0.00044798,21]
[327518508,1716147042346,-17519.67658866,0.00044798,21]
[327518509,1716147042368,-1221.14685389,0.00044798,21]
[327518510,1716147042380,-1086.56026731,0.00044798,21]
[327518511,1716147042574,-17101.65083585,0.00044798,21]
[327518512,1716147042587,-95409.55189005,0.00044798,21]
[327518513,1716147042611,-5205.87926945,0.00044798,21]
[327518514,1716147042622,-360.68756511,0.00044798,21]
[327518515,1716147042634,-1636.4443646,0.00044798,21]
[327518516,1716147042645,-2002.43640695,0.00044798,21]
[327518517,1716147042657,-1606.51272754,0.00044798,21]
[327518518,1716147042668,-2086.50962331,0.00044798,21]
[327518519,1716147042680,-3557.86121742,0.00044798,21]
[327518520,1716147042691,-6757.96750055,0.00044798,21]
[327518521,1716147042703,-32793.82785512,0.00044798,21]
[327518522,1716147042714,-1617.592005,0.00044798,21]
[327518523,1716147042726,-1363.68834929,0.00044798,21]
[327518524,1716147042737,-455.64,0.00044798,21]
[327518525,1716147042749,-46182.85588515,0.00044798,21]
[327518575,1716147043182,-255.80491384,0.00044798,7]
[327518577,1716147043195,-438.19508616,0.00044798,7]
[327518579,1716147043204,-658406.11643329,0.00044798,21]
[327518580,1716147043214,-10258.17758014,0.00044798,7]
[327518581,1716147043233,-3924.06216011,0.00044798,2]
[327518582,1716147043243,-545.76035515,0.00044798,30]
[327518583,1716147043252,-500.0,0.00044798,30]
[327518584,1716147043262,-500.0,0.00044798,30]
[327518585,1716147043272,-500.0,0.00044798,30]
[327518586,1716147043282,-246.22365178,0.00044798,30]
[327518587,1716147043291,-524.85226902,0.00044798,30]
[327518588,1716147043304,-500.0,0.00044798,30]
[327518589,1716147043315,-500.0,0.00044798,30]
[327518590,1716147043325,-500.0,0.00044798,30]
[327518591,1716147043336,-155.0,0.00044798,30]
[327518592,1716147043346,-518.94454591,0.00044798,30]
[327518593,1716147043356,-500.0,0.00044798,30]
[327518594,1716147043366,-500.0,0.00044798,30]
[327518595,1716147043375,-500.0,0.00044798,30]
[327518596,1716147043386,-500.0,0.00044798,30]
[327518597,1716147043396,-500.0,0.00044798,30]
[327518598,1716147043407,-500.0,0.00044798,30]
[327518599,1716147043416,-245.74469309,0.00044798,30]
[327518600,1716147043426,-500.0,0.00044798,30]
[327518601,1716147043436,-648.64425925,0.00044798,30]
[327518602,1716147043445,-483.28328659,0.00044798,30]
[327518603,1716147043455,-527.16733347,0.00044798,30]
[327518604,1716147043464,-500.0,0.00044798,30]
[327518605,1716147043475,-367.59563208,0.00044798,30]
[327518606,1716147043485,-500.0,0.00044798,30]
[327518607,1716147043495,-500.0,0.00044798,30]
[327518608,1716147043505,-636.35,0.00044798,30]
[327518609,1716147043515,-524.47998057,0.00044798,30]
[327518610,1716147043524,-500.0,0.00044798,30]
[327518611,1716147043534,-500.0,0.00044798,30]
[327518612,1716147043544,-500.0,0.00044798,30]
[327518613,1716147043554,-500.0,0.00044798,30]
[327518614,1716147043565,-500.0,0.00044798,30]
[327518615,1716147043574,-500.0,0.00044798,30]
[327518616,1716147043583,-196.94809631,0.00044798,30]
[327518617,1716147043593,-500.0,0.00044798,30]
[327518618,1716147043602,-500.0,0.00044798,30]
[327518619,1716147043612,-520.52454483,0.00044798,30]
[327518620,1716147043623,-500.0,0.00044798,30]
[327518621,1716147043632,-400.0,0.00044798,30]
[327518622,1716147043642,-500.0,0.00044798,30]
[327518623,1716147043652,-500.0,0.00044798,30]
[327518625,1716147043661,-500.0,0.00044798,30]
[327518627,1716147043671,-542.17660367,0.00044798,30]
[327518630,1716147043680,-528.89869855,0.00044798,30]
[327518633,1716147043689,-500.0,0.00044798,30]
[327518634,1716147043699,-500.0,0.00044798,30]
[327518635,1716147043709,-544.40992268,0.00044798,30]
[327518636,1716147043718,-411.03878547,0.00044798,30]
[327518637,1716147043728,-510.25518897,0.00044798,30]
[327518638,1716147043738,-500.0,0.00044798,30]
[327518639,1716147043747,-500.0,0.00044798,30]
[327518640,1716147043757,-500.0,0.00044798,30]
[327518641,1716147043767,-500.0,0.00044798,30]
[327518642,1716147043777,-500.0,0.00044798,30]
[327518643,1716147043786,-517.34553161,0.00044798,30]
[327518644,1716147043796,-500.0,0.00044798,30]
[327518645,1716147043805,-156.73350776,0.00044798,30]
[327518646,1716147043814,-500.0,0.00044798,30]
[327518647,1716147043823,-500.0,0.00044798,30]
[327518648,1716147043833,-500.0,0.00044798,30]
[327518649,1716147043842,-500.0,0.00044798,30]
[327518650,1716147043852,-500.0,0.00044798,30]
[327518651,1716147043861,-500.0,0.00044798,30]
[327518652,1716147043871,-500.0,0.00044798,30]
[327518653,1716147043881,-159.01235676,0.00044798,30]
[327518654,1716147043891,-500.0,0.00044798,30]
[327518655,1716147043901,-232.25630086,0.00044798,30]
[327518656,1716147043911,-500.0,0.00044798,30]
[327518657,1716147043921,-500.0,0.00044798,30]
[327518658,1716147043930,-500.0,0.00044798,30]
[327518659,1716147043941,-500.0,0.00044798,30]
[327518660,1716147043951,-500.0,0.00044798,30]
[327518661,1716147043961,-500.0,0.00044798,30]
[327518662,1716147043970,-500.0,0.00044798,30]
[327518663,1716147043980,-500.0,0.00044798,30]
[327518664,1716147043991,-500.0,0.00044798,30]
[327518665,1716147044000,-500.0,0.00044798,30]
[327518666,1716147044010,-500.0,0.00044798,30]
[327518667,1716147044019,-500.0,0.00044798,30]
[327518668,1716147044029,-500.0,0.00044798,30]
[327518669,1716147044039,-466.29,0.00044798,30]
[327518670,1716147044049,-204.45646853,0.00044798,30]
[327518671,1716147044059,-500.0,0.00044798,30]
[327518672,1716147044069,-500.0,0.00044798,30]
[327518673,1716147044079,-500.0,0.00044798,30]
[327518674,1716147044089,-500.0,0.00044798,30]
[327518675,1716147044099,-500.0,0.00044798,30]
[327518676,1716147044108,-500.0,0.00044798,30]
[327518677,1716147044119,-150.0,0.00044798,30]
[327518678,1716147044129,-500.0,0.00044798,30]
[327518679,1716147044139,-500.0,0.00044798,30]
[327518680,1716147044149,-500.0,0.00044798,30]
[327518681,1716147044158,-506.51,0.00044798,30]
[327518682,1716147044167,-500.0,0.00044798,30]
[327518683,1716147044177,-500.0,0.00044798,30]
[327518684,1716147044187,-500.0,0.00044798,20]
[327518685,1716147044196,-500.0,0.00044798,30]
[327518686,1716147044206,-500.0,0.00044798,30]
[327518687,1716147044217,-578.76213023,0.00044798,30]
[327518688,1716147044230,-500.0,0.00044798,30]
[327518689,1716147044239,-500.0,0.00044798,30]
[327518690,1716147044249,-500.0,0.00044798,30]
[327518691,1716147044258,-500.0,0.00044798,30]
[327518692,1716147044269,-500.0,0.00044798,30]
[327518693,1716147044279,-300.51737616,0.00044798,30]
[327518694,1716147044289,-500.0,0.00044798,30]
[327518695,1716147044301,-500.0,0.00044798,30]
[327518696,1716147044312,-632.77,0.00044798,30]
[327518697,1716147044322,-500.0,0.00044798,30]
[327518698,1716147044336,-578.82,0.00044798,30]
[327518699,1716147044346,-500.0,0.00044798,30]
[327518700,1716147044356,-500.0,0.00044798,30]
[327518701,1716147044366,-500.0,0.00044798,30]
[327518702,1716147044376,-500.0,0.00044798,30]
[327518703,1716147044386,-500.0,0.00044798,30]
[327518704,1716147044396,-500.0,0.00044798,30]
[327518705,1716147044406,-500.0,0.00044798,30]
[327518706,1716147044416,-500.0,0.00044798,30]
[327518707,1716147044426,-380.4271649,0.00044798,30]
[327518708,1716147044436,-500.0,0.00044798,30]
[327518709,1716147044445,-500.0,0.00044798,30]
[327518710,1716147044455,-500.0,0.00044798,30]
[327518711,1716147044465,-198.01283514,0.00044798,30]
[327518712,1716147044477,-500.0,0.00044798,30]
[327518713,1716147044487,-500.0,0.00044798,30]
[327518714,1716147044497,-507.13,0.00044798,30]
[327518715,1716147044507,-416.73,0.00044798,30]
[327518716,1716147044516,-608.24,0.00044798,30]
[327518717,1716147044526,-500.0,0.00044798,30]
[327518718,1716147044536,-504.56,0.00044798,30]
[327518719,1716147044545,-500.0,0.00044798,30]
[327518720,1716147044555,-175.85,0.00044798,30]
[327518721,1716147044564,-500.0,0.00044798,30]
[327518722,1716147044574,-320.03442535,0.00044798,2]
[327518723,1716147044583,-484.22,0.00044798,30]
[327518724,1716147044593,-199.23855059,0.00044799,30]
[327518725,1716147044602,-527.64880757,0.00044799,30]
[327518726,1716147044611,-3364.38916955,0.00044799,4]
[327518727,1716147044622,-13428.3498339,0.00044799,4]
[327518728,1716147044631,-454.20945381,0.00044799,30]
[327518729,1716147044640,-269.47488324,0.00044799,2]
[327518730,1716147044650,-500.0,0.00044799,30]
[327518731,1716147044659,-602.85204879,0.00044799,30]
[327518732,1716147044669,-771.14160921,0.00044799,7]
[327518733,1716147044679,-200.0,0.00044799,7]
[327518734,1716147044688,-500.0,0.00044799,30]
[327518735,1716147044697,-500.0,0.00044799,30]
[327518736,1716147044707,-500.0,0.00044799,30]
[327518737,1716147044717,-500.0,0.00044799,30]
[327518738,1716147044727,-500.0,0.00044799,30]
[327518739,1716147044736,-500.0,0.00044799,30]
[327518740,1716147044746,-500.0,0.00044799,30]
[327518741,1716147044755,-500.0,0.00044799,30]
[327518742,1716147044765,-500.0,0.00044799,30]
[327518743,1716147044774,-500.0,0.00044799,30]
[327518744,1716147044784,-501.74872991,0.00044799,7]
[327518745,1716147044794,-500.0,0.00044799,30]
[327518746,1716147044803,-500.0,0.00044799,30]
[327518747,1716147044812,-500.0,0.00044799,30]
[327518748,1716147044822,-500.0,0.00044799,30]
[327518749,1716147044831,-500.0,0.00044799,30]
[327518750,1716147044840,-500.0,0.00044799,30]
[327518751,1716147044849,-500.0,0.00044799,30]
[327518752,1716147044859,-500.0,0.00044799,30]
[327518753,1716147044869,-500.0,0.00044799,30]
[327518754,1716147044879,-500.0,0.00044799,30]
[327518755,1716147044889,-500.0,0.00044799,30]
[327518756,1716147044899,-500.0,0.00044799,30]
[327518757,1716147044909,-500.0,0.00044799,30]
[327518758,1716147044918,-500.0,0.00044799,30]
[327518759,1716147044928,-205.35690712,0.00044799,30]
[327518760,1716147044937,-500.0,0.00044799,30]
[327518761,1716147044947,-500.0,0.00044799,30]
[327518762,1716147044958,-500.0,0.00044799,30]
[327518763,1716147044968,-500.0,0.00044799,30]
[327518764,1716147044977,-500.0,0.00044799,30]
[327518765,1716147044987,-500.0,0.00044799,30]
[327518766,1716147044997,-500.0,0.00044799,30]
[327518767,1716147045007,-500.0,0.00044799,30]
[327518768,1716147045019,-500.0,0.00044799,30]
[327518769,1716147045028,-545.11156393,0.00044799,30]
[327518770,1716147045039,-500.0,0.00044799,30]
[327518771,1716147045049,-500.0,0.00044799,30]
[327518772,1716147045059,-500.0,0.00044799,30]
[327518773,1716147045068,-507.62122426,0.00044799,30]
[327518774,1716147045078,-500.0,0.00044799,30]
[327518775,1716147045089,-500.0,0.00044799,30]
[327518776,1716147045099,-500.0,0.00044799,30]
[327518777,1716147045108,-412.29712078,0.00044799,30]
[327518778,1716147045118,-510.89848888,0.00044799,30]
[327518779,1716147045128,-502.52248748,0.00044799,2]
[327518780,1716147045139,-459.95616376,0.00044799,30]
[327518781,1716147045148,-500.0,0.00044799,30]
[327518782,1716147045158,-230.85,0.00044799,30]
[327518783,1716147045169,-518.17673786,0.00044799,30]
[327518784,1716147045180,-12552.3339734,0.00044799,2]
[327518785,1716147045190,-301.49031396,0.00044799,30]
[327518786,1716147045200,-155.0,0.00044799,30]
[327518787,1716147045210,-500.0,0.00044799,30]
[327518788,1716147045222,-503.53294177,0.00044799,30]
[327518789,1716147045233,-501.68630832,0.00044799,30]
[327518790,1716147045277,-360.86499891,0.00044799,30]
[327518791,1716147045287,-157.81806652,0.00044799,30]
[327518792,1716147045297,-504.31217234,0.00044799,30]
[327518793,1716147045307,-502.26472583,0.00044799,30]
[327518794,1716147045317,-282.90968661,0.00044799,30]
[327518795,1716147045326,-500.0,0.00044799,30]
[327518796,1716147045335,-500.0,0.00044799,30]
[327518797,1716147045344,-500.0,0.00044799,30]
[327518798,1716147045354,-500.0,0.00044799,30]
[327518799,1716147045363,-500.0,0.00044799,30]
[327518800,1716147045373,-500.0,0.00044799,30]
[327518801,1716147045382,-500.0,0.00044799,30]
[327518802,1716147045392,-500.0,0.00044799,30]
[327518803,1716147045402,-500.0,0.00044799,30]
[327518804,1716147045411,-500.0,0.00044799,30]
[327518805,1716147045420,-500.0,0.00044799,30]
[327518806,1716147045430,-500.0,0.00044799,30]
[327518807,1716147045440,-493.84,0.00044799,30]
[327518808,1716147045449,-500.0,0.00044799,30]
[327518809,1716147045458,-500.0,0.00044799,30]
[327518810,1716147045467,-500.0,0.00044799,30]
[327518811,1716147045477,-500.0,0.00044799,30]
[327518812,1716147045486,-500.0,0.00044799,30]
[327518813,1716147045495,-500.0,0.00044799,30]
[327518814,1716147045505,-500.0,0.00044799,30]
[327518815,1716147045515,-500.0,0.00044799,30]
[327518816,1716147045524,-500.0,0.00044799,30]
[327518817,1716147045533,-500.0,0.00044799,30]
[327518818,1716147045542,-500.0,0.00044799,30]
[327518819,1716147045552,-507.81350401,0.00044799,30]
[327518820,1716147045561,-500.0,0.00044799,30]
[327518821,1716147045571,-500.0,0.00044799,30]
[327518822,1716147045580,-173.09,0.00044799,30]
[327518823,1716147045589,-500.0,0.00044799,30]
[327518824,1716147045599,-500.0,0.00044799,30]
[327518825,1716147045609,-578.04,0.00044799,30]
[327518826,1716147045619,-500.0,0.00044799,30]
[327518827,1716147045628,-500.0,0.00044799,30]
[327518828,1716147045638,-500.0,0.00044799,30]
[327518829,1716147045647,-500.0,0.00044799,30]
[327518830,1716147045656,-500.0,0.00044799,30]
[327518831,1716147045666,-500.0,0.00044799,30]
[327518832,1716147045676,-486.28,0.00044799,30]
[327518833,1716147045685,-500.0,0.00044799,30]
[327518834,1716147045695,-500.0,0.00044799,30]
[327518835,1716147045704,-500.0,0.00044799,30]
[327518836,1716147045715,-524.45,0.00044799,30]
[327518837,1716147045724,-500.0,0.00044799,30]
[327518839,1716147045734,-500.0,0.00044799,30]
[327518841,1716147045744,-500.0,0.00044799,30]
[327518842,1716147045753,-500.0,0.00044799,30]
[327518844,1716147045763,-500.0,0.00044799,30]
[327518846,1716147045772,-500.0,0.00044799,30]
[327518848,1716147045782,-500.0,0.00044799,30]
[327518850,1716147045792,-500.0,0.00044799,30]
[327518852,1716147045801,-500.0,0.00044799,30]
[327518854,1716147045811,-500.0,0.00044799,30]
[327518855,1716147045820,-500.0,0.00044799,30]
[327518857,1716147045830,-622.47,0.00044799,30]
[327518859,1716147045839,-226.74,0.00044799,30]
[327518861,1716147045849,-470.55,0.00044799,30]
[327518863,1716147045859,-500.0,0.00044799,30]
[327518865,1716147045869,-904.70123,0.00044799,25]
[327518866,1716147045879,-500.0,0.00044799,30]
[327518867,1716147045888,-265.139242,0.00044799,30]
[327518868,1716147045897,-500.0,0.00044799,30]
[327518869,1716147045907,-260.11,0.00044799,30]
[327518870,1716147045917,-500.0,0.00044799,30]
[327518871,1716147045927,-500.0,0.00044799,30]
[327518872,1716147045936,-500.0,0.00044799,30]
[327518874,1716147045946,-500.0,0.00044799,30]
[327518876,1716147045956,-500.0,0.00044799,30]
[327518877,1716147045966,-500.0,0.00044799,30]
[327518878,1716147045975,-500.0,0.00044799,30]
[327518879,1716147045985,-500.0,0.00044799,30]
[327518880,1716147045995,-500.0,0.00044799,21]
[327518881,1716147046004,-500.0,0.00044799,21]
[327518882,1716147046014,-500.0,0.00044799,30]
[327518883,1716147046024,-500.0,0.00044799,30]
[327518884,1716147046034,-500.0,0.00044799,30]
[327518885,1716147046043,-500.0,0.00044799,30]
[327518886,1716147046052,-390.54,0.00044799,30]
[327518887,1716147046062,-988.0,0.00044799,120]
[327518888,1716147046071,-438336.29555133,0.000448,60]
[327518889,1716147046081,-230.42446598,0.000448,7]
[327518890,1716147046090,-925.51812888,0.000448,30]
[327518891,1716147046099,-500.0,0.000448,120]
[327518892,1716147046109,-163.9,0.000448,5]
[327518893,1716147046118,-163.9,0.000448,5]
[327518894,1716147046128,-163.9,0.000448,5]
[327518895,1716147046137,-163.9,0.000448,5]
[327518896,1716147046146,-500.0,0.00044802,30]
[327518897,1716147046155,-320.18,0.00044802,30]
[327518898,1716147046164,-2584.67611318,0.00044806,20]
[327518899,1716147046174,-500.0,0.00044806,30]
[327518900,1716147046183,-137703.6126868,0.00044807,2]
[327518901,1716147046192,-10156.5581429,0.00044807,2]
[327518902,1716147046202,-500.0,0.00044818,30]
[327518903,1716147046212,-305.67832044,0.00044818,21]
[327518904,1716147046225,-228.87,0.00044818,30]
[327518905,1716147046235,-2584.67611318,0.00044825,20]
[327518906,1716147046244,-6382.2990294,0.00044838,2]
[327518907,1716147046253,-2584.67611318,0.00044844,20]
[327518908,1716147046264,-2584.67611318,0.00044862,20]
[327518909,1716147046274,-187.83986153,0.00044869,20]
[327518910,1716147046283,-500.0,0.00044879,30]
[327518911,1716147046293,-500.0,0.00044879,30]
[327518912,1716147046303,-500.0,0.00044879,30]
[327518913,1716147046313,-500.0,0.00044879,30]
[327518914,1716147046323,-500.0,0.00044879,30]
[327518915,1716147046332,-500.0,0.00044879,30]
[327518916,1716147046342,-500.0,0.00044879,30]
[327518917,1716147046352,-184.78,0.00044879,30]
[327518918,1716147046361,-525.003,0.00044879,30]
[327518919,1716147046371,-50000.0,0.0004488,120]
[327518920,1716147046380,-2584.67611318,0.00044881,20]
[327518921,1716147046390,-313.880918,0.00044888,30]
[327518922,1716147046399,-151.851773,0.00044888,30]
[327518923,1716147046408,-505.63173081,0.0004489,2]
[327518924,1716147046418,-155.32868947,0.00044898,4]
[327518925,1716147046427,-200.0,0.000449,120]
[327518926,1716147046437,-1000.0,0.000449,120]
[327518927,1716147046447,-265.8252625,0.000449,120]
[327518928,1716147046457,-1256.77815812,0.000449,60]
[327518929,1716147046467,-187.83986153,0.000449,20]
[327518930,1716147046476,-207.44460153,0.000449,20]
[327518931,1716147046486,-16309.40520718,0.000449,2]
[327518932,1716147046495,-1003.49110714,0.000449,2]
[327518933,1716147046505,-3700.8702861,0.000449,2]
[327518934,1716147046514,-450.0,0.000449,2]
[327518935,1716147046523,-2584.67611318,0.000449,20]
[327518936,1716147046532,-156.03,0.000449,7]
[327518937,1716147046541,-157.34,0.000449,7]
[327518938,1716147046551,-711.78775902,0.000449,2]
[327518939,1716147046560,-386.39921416,0.000449,2]
[327518940,1716147046570,-175.0,0.00044931,120]
[327518941,1716147046579,-4589.16668298,0.00044958,4]
[327518942,1716147046589,-500.0,0.00044966,30]
[327518943,1716147046599,-9260.56168366,0.00044967,4]
[327518944,1716147046608,-286.17247073,0.00044967,4]
[327518945,1716147046618,-5260.23733467,0.00044967,4]
[327518946,1716147046627,-10938.39201152,0.00044968,4]
[327518947,1716147046637,-282.49599103,0.00044968,4]
[327518948,1716147046647,-500.0,0.00044968,30]
[327518949,1716147046656,-505.74711942,0.00044968,30]
[327518950,1716147046665,-500.0,0.00044968,30]
[327518951,1716147046675,-506.82644763,0.00044968,30]
[327518952,1716147046684,-500.0,0.00044968,30]
[327518953,1716147046693,-500.0,0.00044968,30]
[327518954,1716147046702,-521.83339821,0.00044968,30]
[327518955,1716147046712,-500.0,0.00044968,30]
[327518956,1716147046721,-181.92673741,0.00044968,30]
[327518957,1716147046730,-282.00189826,0.00044968,30]
[327518958,1716147046739,-500.0,0.00044968,30]
[327518959,1716147046748,-500.0,0.00044968,30]
[327518960,1716147046759,-1000.0,0.00044968,120]
[327518961,1716147046769,-500.0,0.00044968,30]
[327518962,1716147046778,-500.0,0.00044968,30]
[327518963,1716147046788,-500.0,0.00044968,30]
[327518964,1716147046797,-500.0,0.00044968,30]
[327518965,1716147046806,-500.0,0.00044968,30]
[327518966,1716147046815,-500.0,0.00044968,30]
[327518967,1716147046825,-500.0,0.00044968,30]
[327518968,1716147046834,-111310.4202552,0.00044969,2]
[327518969,1716147046843,-84917.2278235,0.00044969,2]
[327518970,1716147046853,-58524.0353919,0.00044969,2]
[327518971,1716147046863,-32130.8429602,0.00044969,2]
[327518972,1716147046872,-5737.6505286,0.00044969,2]
[327518973,1716147046882,-8209.8844988,0.00044969,2]
[327518974,1716147046892,-6263.2108547,0.00044969,2]
[327518975,1716147046901,-4316.5372107,0.00044969,2]
[327518976,1716147046911,-2369.8635666,0.00044969,2]
[327518977,1716147046920,-423.1899226,0.00044969,2]
[327518978,1716147046930,-5159.0250488,0.00044969,2]
[327518979,1716147046940,-3935.7510681,0.00044969,2]
[327518980,1716147046949,-2712.4770875,0.00044969,2]
[327518981,1716147046959,-1489.2031068,0.00044969,2]
[327518982,1716147046968,-265.9291262,0.00044969,2]
[327518983,1716147046978,-300.0,0.0004497,3]
[327518984,1716147046987,-300.0,0.0004497,3]
[327518985,1716147046997,-2642.99999,0.00044978,46]
[327518986,1716147047006,-6931.7076661,0.0004498,120]
[327518987,1716147047015,-272.58853381,0.0004498,30]
[327518988,1716147047026,-157.5975754,0.00044987,30]
[327518989,1716147047036,-374.0,0.00044987,30]
[327518990,1716147047046,-505.63173081,0.0004499,2]
[327518991,1716147047056,-325.80304841,0.00044998,4]
[327518992,1716147047065,-195.76544594,0.00044998,4]
[327518993,1716147047075,-194.52498407,0.00044998,4]
[327518994,1716147047084,-5000.0,0.00044998,7]
[327518995,1716147047094,-378.20844102,0.00044998,7]
[327518996,1716147047103,-2000.09259381,0.00044998,4]
[327518997,1716147047113,-161.35639647,0.00044998,4]
[327518998,1716147047123,-788.18220101,0.00044998,4]
[327518999,1716147047132,-488.01922742,0.00044998,4]
[327519000,1716147047142,-597.00285205,0.00044998,4]
[327519001,1716147047151,-155.0,0.00044998,4]
[327519002,1716147047161,-1000.0,0.00044998,4]
[327519003,1716147047171,-155.0,0.00044998,4]
[327519004,1716147047181,-782.13638794,0.00044998,2]
[327519005,1716147047191,-155.30607672,0.00044998,4]
[327519006,1716147047200,-1163.80373561,0.00044998,4]
[327519007,1716147047210,-1062.35823973,0.00044998,4]
[327519008,1716147047220,-19623.11442373,0.00044998,7]
[327519009,1716147047234,-2284.43823994,0.00044998,4]
[327519010,1716147047243,-1025.9149878,0.00044998,4]
[327519011,1716147047253,-1380.16157324,0.00044998,4]
[327519012,1716147047264,-890.90790075,0.00044998,4]
[327519013,1716147047274,-313.92509782,0.00044998,4]
[327519014,1716147047284,-155.0,0.00044998,4]
[327519015,1716147047294,-306.15892917,0.00044998,4]
[327519016,1716147047304,-177.5004176,0.00044998,4]
[327519017,1716147047313,-3279.04154518,0.00044998,4]
[327519018,1716147047324,-3116.42106464,0.00044998,30]
[327519019,1716147047333,-883.0724361,0.00044998,4]
[327519020,1716147047343,-155.0,0.00044998,4]
[327519021,1716147047353,-523.16611257,0.00044998,4]
[327519022,1716147047363,-2585.91720393,0.00044998,15]
[327519023,1716147047372,-250.69369787,0.00044998,15]
[327519024,1716147047382,-502.83430674,0.00044998,30]
[327519025,1716147047391,-2463.05665898,0.00044999,2]
[327519026,1716147047401,-18383.00267324,0.00044999,90]
[327519027,1716147047410,-237.31936721,0.00044999,7]
[327519028,1716147047420,-354.15,0.00044999,30]
[327519029,1716147047430,-500.0,0.00044999,30]
[327519030,1716147047440,-500.0,0.00044999,30]
[327519031,1716147047450,-500.0,0.00044999,30]
[327519032,1716147047459,-500.0,0.00044999,30]
[327519033,1716147047468,-500.0,0.00044999,30]
[327519034,1716147047478,-500.0,0.00044999,30]
[327519035,1716147047488,-500.0,0.00044999,30]
[327519036,1716147047498,-500.0,0.00044999,30]
[327519037,1716147047507,-500.0,0.00044999,30]
[327519038,1716147047518,-500.0,0.00044999,30]
[327519039,1716147047528,-500.0,0.00044999,30]
[327519040,1716147047537,-249.35834395,0.00044999,30]
[327519041,1716147047546,-500.0,0.00044999,30]
[327519042,1716147047556,-500.0,0.00044999,30]
[327519043,1716147047566,-500.0,0.00044999,30]
[327519044,1716147047575,-500.0,0.00044999,30]
[327519045,1716147047585,-500.0,0.00044999,30]
[327519046,1716147047594,-500.0,0.00044999,30]
[327519047,1716147047604,-500.0,0.00044999,30]
[327519048,1716147047613,-500.0,0.00044999,30]
[327519049,1716147047623,-500.0,0.00044999,30]
[327519050,1716147047632,-344.44354093,0.00044999,30]
[327519051,1716147047642,-500.0,0.00044999,30]
[327519052,1716147047651,-500.0,0.00044999,30]
[327519053,1716147047660,-500.0,0.00044999,30]
[327519054,1716147047669,-500.0,0.00044999,30]
[327519055,1716147047679,-500.0,0.00044999,30]
[327519056,1716147047688,-500.0,0.00044999,30]
[327519057,1716147047697,-500.0,0.00044999,30]
[327519058,1716147047706,-500.0,0.00044999,30]
[327519059,1716147047716,-500.0,0.00044999,30]
[327519060,1716147047725,-500.0,0.00044999,30]
[327519061,1716147047735,-500.0,0.00044999,30]
[327519062,1716147047744,-500.0,0.00044999,30]
[327519063,1716147047754,-469.02415629,0.00044999,30]
[327519064,1716147047764,-500.0,0.00044999,30]
[327519065,1716147047774,-500.0,0.00044999,30]
[327519066,1716147047783,-303.81508076,0.00044999,30]
[327519067,1716147047793,-4969555.50586382,0.00045,5]
[327519068,1716147047811,-397.00005046,0.00045,5]
[327519069,1716147047822,-1383.80611967,0.00045,5]
[327519070,1716147047843,-500.0,0.00043835,30]
[327519071,1716147047853,-32924.95335834,0.00045,5]
[327519072,1716147047865,-316851.53330798,0.00045,5]
[327519073,1716147047891,-500.0,0.00043835,30]
[327519074,1716147047901,-500.0,0.00043835,30]
[327519075,1716147047910,-32248.43585301,0.00045,5]
[327519076,1716147047921,-1205.08588127,0.00045,5]
[327519077,1716147048981,-2159.0,0.00030875,2]
[327519078,1716147048991,-500.0,0.00043835,30]